bitfinex-derivatives/quotes_BNBF0:USTF0_20250211
["timestamp","ask_amount","ask_price","bid_price","bid_amount"]
[1739241616526,1.77639009,616.11,614.82,0.5884464]
[1739241616828,1.77639009,616.1,614.83,0.58844111]
[1739241617127,2.84624189,616.09,614.84,0.58843581]
[1739241617327,1.77639009,616.08,614.85,0.58843052]
[1739241617528,1.77639009,616.08,614.77,1.19824383]
[1739241617529,1.77639009,616.07,614.86,0.58842523]
[1739241617829,1.77639009,616.06,614.87,0.58841994]
[1739241618126,2.84624189,616.05,614.88,0.58841465]
[1739241618325,1.77639009,616.04,614.89,0.58840936]
[1739241618530,1.77639009,616.03,614.9,0.26314794]
[1739241618727,2.84624189,616.02,614.9,0.26314794]
[1739241618921,1.77639009,616.01,614.9,0.26314794]
[1739241619122,1.477965,616.0,614.9,0.26314794]
[1739241619321,1.0698518,616.0,614.91,0.32525084]
[1739241619525,1.0698518,616.0,614.92,0.26314794]
[1739241619725,0.32458047,616.18,614.93,0.32524027]
[1739241619925,1.77303529,616.17,614.94,0.26314794]
[1739241620124,1.77303529,616.16,614.94,0.26314794]
[1739241620329,1.77303529,616.15,614.94,0.26314794]
[1739241620529,1.77303529,616.14,614.94,0.26314794]
[1739241620729,1.77303529,616.13,614.94,0.26314794]
[1739241620930,1.77303529,616.12,614.94,0.26314794]
[1739241621129,1.77303529,616.11,614.94,0.26314794]
[1739241621429,1.77304504,616.1,614.95,0.26257374]
[1739241621629,1.47464393,616.09,614.94,0.26257374]
[1739241621826,1.47464393,616.08,614.95,0.26257374]
[1739241622031,1.47464393,616.07,614.96,0.26257374]
[1739241622230,0.32458047,616.18,614.94,0.26257374]
[1739241622432,1.77258527,616.17,614.95,0.26257374]
[1739241622729,1.77258527,616.16,614.96,0.26257374]
[1739241622931,1.47418185,616.15,614.93,0.32524027]
[1739241623133,1.47418185,616.14,614.94,0.26257588]
[1739241623327,1.47418185,616.13,614.94,0.26257588]
[1739241623527,1.47418185,616.12,614.94,0.26257588]
[1739241623723,1.47418185,616.11,614.94,0.26257588]
[1739241623933,1.47418185,616.1,614.94,0.26257588]
[1739241624129,1.47418185,616.09,614.94,0.26257588]
[1739241624430,1.47418185,616.08,614.94,0.26257588]
[1739241624630,0.32458047,616.18,614.95,0.26256991]
[1739241624830,1.47378636,616.17,614.96,0.26256991]
[1739241625227,1.47378636,616.17,614.96,0.58779431]
[1739241625428,1.47378636,616.17,614.97,0.26255257]
[1739241626025,1.47378636,616.17,614.98,0.32521382]
[1739241626431,1.47378636,616.17,614.99,0.26252803]
[1739241626733,0.32458047,616.18,614.99,0.26252803]
[1739241626927,0.32458047,616.18,615.0,0.32520325]
[1739241627134,0.32458047,616.18,615.01,0.26252803]
[1739241627734,0.32458047,616.18,615.02,0.32519267]
[1739241628128,0.32458047,616.18,615.03,0.26252803]
[1739241628430,0.32458047,616.18,615.04,0.3251821]
[1739241628629,0.32458047,616.18,615.05,0.26252803]
[1739241628831,0.32458047,616.18,615.06,0.32517152]
[1739241629032,0.32458047,616.18,615.07,0.26252803]
[1739241629232,1.19745275,616.82,615.08,0.32516095]
[1739241629430,0.32425421,616.8,615.09,0.26252803]
[1739241629633,1.77384531,616.79,615.1,0.32515038]
[1739241629831,0.32426998,616.77,615.11,0.26252803]
[1739241630031,1.77383413,616.76,615.12,0.58756719]
[1739241630336,0.32428576,616.74,615.13,0.5875619]
[1739241630635,1.77450251,616.73,615.14,0.58755661]
[1739241630836,1.77450251,616.72,615.15,0.58755133]
[1739241631030,2.09880404,616.71,615.16,0.58754604]
[1739241631230,2.0988093,616.7,615.17,0.58754076]
[1739241631434,0.32431731,616.68,615.18,0.58753547]
[1739241631637,1.77455111,616.67,615.19,0.26247562]
[1739241631935,0.32433309,616.65,615.19,0.26247562]
[1739241632136,2.84258124,616.64,615.19,0.26247562]
[1739241632338,0.32434886,616.62,615.19,0.26247562]
[1739241632532,1.77488537,616.61,615.19,0.26247562]
[1739241632733,2.09924476,616.6,615.2,0.32509752]
[1739241632934,2.84258124,616.59,615.21,0.26247562]
[1739241633231,1.80095436,616.58,615.22,0.32508696]
[1739241633431,2.09922917,616.57,615.23,0.2624442]
[1739241633633,2.09923443,616.56,615.23,0.58752587]
[1739241633833,2.09923969,616.55,615.24,0.2624442]
[1739241634030,2.09924495,616.54,615.24,0.2624442]
[1739241634228,3.16694608,616.53,615.24,0.2624442]
[1739241634438,2.09925547,616.52,615.24,0.2624442]
[1739241634643,2.54428032,616.51,615.24,0.2624442]
[1739241634842,1.47658445,616.5,615.23,0.32508167]
[1739241635042,1.47658445,616.5,615.24,0.26243589]
[1739241635745,1.06769587,616.49,615.24,0.26243589]
[1739241635940,1.47658445,616.48,615.24,0.26243589]
[1739241636640,1.36596893,616.47,615.24,0.26243589]
[1739241636837,1.77485751,616.46,615.24,0.26243589]
[1739241637039,2.84255338,616.45,615.24,0.26243589]
[1739241637238,1.77485751,616.44,615.24,0.26243589]
[1739241637440,1.77485751,616.43,615.24,0.26243589]
[1739241637641,1.77485751,616.42,615.24,0.26243589]
[1739241637839,1.77485751,616.41,615.24,0.26243589]
[1739241638043,1.77485751,616.4,615.24,0.26243589]
[1739241638248,1.77485751,616.39,615.24,0.26243589]
[1739241638446,1.47658445,616.38,615.24,0.26243589]
[1739241638746,2.54428032,616.37,615.24,0.26243589]
[1739241638943,1.47658445,616.36,615.24,0.26243589]
[1739241639342,0.29829637,616.35,615.24,0.26243589]
[1739241639547,1.47658445,616.34,615.24,0.26243589]
[1739241640043,1.06769587,616.33,615.24,0.26243589]
[1739241640248,1.47658445,616.32,615.24,0.26243589]
[1739241640742,1.06769587,616.31,615.24,0.26243589]
[1739241640947,1.47658445,616.3,615.24,0.26243589]
[1739241641747,1.06769587,616.29,615.24,0.26243589]
[1739241641946,1.47658445,616.28,615.24,0.26243589]
[1739241642343,1.06769587,616.27,615.24,0.26243589]
[1739241642547,1.47658445,616.26,615.24,0.26243589]
[1739241643142,1.06769587,616.25,615.24,0.26243589]
[1739241643348,1.47658445,616.24,615.24,0.26243589]
[1739241643542,1.05307376,616.23,615.24,0.26243589]
[1739241643741,1.47658445,616.22,615.24,0.26243589]
[1739241643942,1.47658445,616.22,615.23,0.32508167]
[1739241644141,1.47658445,616.22,615.24,0.26240646]
[1739241644848,1.47658445,616.22,615.23,0.32508167]
[1739241644849,1.47658445,616.21,615.23,0.32508167]
[1739241645148,1.47658445,616.2,615.23,0.32508167]
[1739241645449,1.47658445,616.19,615.23,0.32508167]
[1739241645642,1.47658445,616.18,615.23,0.32508167]
[1739241645840,1.47658445,616.17,615.23,0.32508167]
[1739241646040,1.47658445,616.16,615.23,0.32508167]
[1739241646248,1.47658445,616.15,615.23,0.32508167]
[1739241646547,1.47658445,616.14,615.23,0.32508167]
[1739241646748,1.47658445,616.13,615.23,0.32508167]
[1739241647048,1.48198841,616.12,615.23,0.32508167]
[1739241647241,1.48198841,616.11,615.23,0.32508167]
[1739241647447,1.48198841,616.1,615.23,0.32508167]
[1739241647649,1.48198841,616.09,615.23,0.32508167]
[1739241647845,1.48198841,616.08,615.23,0.32508167]
[1739241648050,1.48198841,616.07,615.23,0.32508167]
[1739241648252,1.48198841,616.06,615.23,0.32508167]
[1739241648453,1.48198841,616.05,615.23,0.32508167]
[1739241648651,1.48198841,616.04,615.23,0.32508167]
[1739241648847,1.48198841,616.03,615.23,0.32508167]
[1739241649052,1.48198841,616.02,615.23,0.32508167]
[1739241649250,0.32443831,616.45,615.23,0.32508167]
[1739241649556,1.77994375,616.44,615.23,0.32508167]
[1739241649755,2.10439259,616.43,615.23,0.32508167]
[1739241649951,2.10439785,616.42,615.23,0.32508167]
[1739241650150,2.10440311,616.41,615.23,0.32508167]
[1739241650354,2.10441798,616.4,615.23,0.32508167]
[1739241650551,1.8060559,616.39,615.23,0.32508167]
[1739241650757,1.80606117,616.38,615.23,0.32508167]
[1739241651057,1.80606643,616.37,615.23,0.32508167]
[1739241651257,1.8060717,616.36,615.23,0.32508167]
[1739241651457,1.80607696,616.35,615.23,0.32508167]
[1739241651658,1.80608222,616.34,615.23,0.32508167]
[1739241651858,1.80608749,616.33,615.23,0.32508167]
[1739241652159,1.80609275,616.32,615.23,0.32508167]
[1739241652360,1.80609802,616.31,615.23,0.32508167]
[1739241652563,1.80610329,616.3,615.23,0.32508167]
[1739241652761,1.48158601,616.29,615.23,0.32508167]
[1739241652956,1.48158601,616.28,615.23,0.32508167]
[1739241653156,1.48158601,616.27,615.23,0.32508167]
[1739241653356,1.48158601,616.26,615.23,0.32508167]
[1739241653561,0.32451728,616.3,615.23,0.32508167]
[1739241653562,1.48158601,616.25,615.23,0.32508167]
[1739241653762,1.48158601,616.24,615.23,0.32508167]
[1739241653964,1.48158601,616.23,615.23,0.32508167]
[1739241654160,0.32451728,616.3,615.23,0.32508167]
[1739241654161,1.48237931,616.22,615.23,0.32508167]
[1739241654465,1.48237931,616.21,615.23,0.32508167]
[1739241654659,1.48237931,616.2,615.24,0.2617626]
[1739241654860,1.48249271,616.19,615.24,0.2617626]
[1739241655063,1.48249271,616.18,615.24,0.2617626]
[1739241655264,1.48249271,616.17,615.24,0.2617626]
[1739241655459,1.482388,616.16,615.24,0.2617626]
[1739241655662,1.482388,616.15,615.24,0.2617626]
[1739241655862,1.482388,616.14,615.24,0.2617626]
[1739241656065,1.482388,616.13,615.24,0.2617626]
[1739241656260,1.48202007,616.12,615.24,0.2617626]
[1739241656567,1.48202007,616.11,615.24,0.2617626]
[1739241656760,1.48202007,616.1,615.24,0.2617626]
[1739241656963,1.48153675,616.09,615.24,0.2617626]
[1739241657166,1.07172862,616.09,615.24,0.2617626]
[1739241657362,1.07172862,616.29,615.24,0.2617626]
[1739241657559,1.48125306,616.28,615.24,0.2617626]
[1739241657961,1.07172862,616.27,615.24,0.2617626]
[1739241658161,1.48125306,616.26,615.24,0.2617626]
[1739241658566,1.07172862,616.25,615.24,0.2617626]
[1739241658861,1.48125306,616.24,615.24,0.2617626]
[1739241659066,1.48125306,616.24,615.23,0.32508167]
[1739241659268,1.48125306,616.24,615.24,0.26177758]
[1739241659562,1.07172862,616.23,615.24,0.26177758]
[1739241659767,1.48125306,616.22,615.24,0.26177758]
[1739241659966,1.07172862,616.21,615.24,0.26177758]
[1739241660267,1.48125306,616.2,615.24,0.26177758]
[1739241660862,1.48100397,616.19,615.24,0.26177758]
[1739241661069,1.48100397,616.18,615.24,0.26177758]
[1739241661266,1.48100397,616.17,615.24,0.26177758]
[1739241661465,1.48100397,616.16,615.24,0.26177758]
[1739241661665,1.48100397,616.15,615.24,0.26177758]
[1739241661862,2.55273259,616.14,615.24,0.26177758]
[1739241662068,1.48100397,616.13,615.24,0.26177758]
[1739241662268,1.07172862,616.12,615.24,0.26177758]
[1739241662866,1.07172862,616.29,615.24,0.26177758]
[1739241663066,1.48192999,616.28,615.24,0.26177758]
[1739241663267,2.55365861,616.28,615.24,0.26177758]
[1739241663470,2.55365861,616.27,615.24,0.26177758]
[1739241663670,1.48192999,616.26,615.24,0.26177758]
[1739241663872,2.55365861,616.26,615.24,0.26177758]
[1739241664067,1.48192999,616.25,615.23,0.32508167]
[1739241664265,1.07172862,616.24,615.23,0.32508167]
[1739241664465,1.48192999,616.23,615.23,0.32508167]
[1739241664765,1.48192999,616.23,615.24,0.26176497]
[1739241665369,1.07172862,616.22,615.24,0.26176497]
[1739241665570,1.48192999,616.21,615.24,0.26176497]
[1739241665871,1.07172862,616.2,615.24,0.26176497]
[1739241666071,1.48192999,616.19,615.24,0.26176497]
[1739241666771,1.07172862,616.18,615.24,0.26176497]
[1739241666973,1.48192999,616.17,615.24,0.26176497]
[1739241667375,1.07172862,616.16,615.25,0.26175976]
[1739241667567,1.48192999,616.15,615.26,0.26175976]
[1739241667773,1.48192999,616.15,615.24,0.26175976]
[1739241667974,1.48192999,616.15,615.25,0.26175976]
[1739241668275,1.07172862,616.14,615.26,0.26175976]
[1739241668474,1.48192999,616.13,615.24,0.26175976]
[1739241668670,1.48192999,616.13,615.25,0.26175976]
[1739241668874,1.07172862,616.14,615.26,0.26175976]
[1739241669176,1.07172862,616.12,615.27,0.26175988]
[1739241669475,1.07172862,616.13,615.28,0.26175988]
[1739241669678,1.48097755,616.12,615.24,0.26175988]
[1739241669876,1.48097755,616.12,615.25,0.26175988]
[1739241670069,1.48097755,616.11,615.24,0.26175988]
[1739241670270,1.07172862,616.1,615.24,0.26175988]
[1739241671177,1.07172862,616.29,615.24,0.26175988]
[1739241671381,1.48104984,616.28,615.24,0.26175988]
[1739241671974,1.07172862,616.27,615.24,0.26175988]
[1739241672178,1.48104984,616.26,615.24,0.26175988]
[1739241672380,1.07172862,616.25,615.24,0.26175988]
[1739241672579,1.48104984,616.24,615.24,0.26175988]
[1739241672779,1.07172862,616.25,615.25,0.58677821]
[1739241672980,1.07172862,616.25,615.26,0.58677293]
[1739241673175,1.07172862,616.25,615.27,0.58676765]
[1739241673374,1.07172862,616.29,615.28,0.58676236]
[1739241673579,1.07172862,616.29,615.29,0.58675708]
[1739241673777,1.07172862,616.29,615.3,0.26170711]
[1739241673778,1.48081105,616.28,615.3,0.26170711]
[1739241673981,1.48081105,616.28,615.31,0.32503941]
[1739241674177,1.07172862,616.27,615.32,0.26170711]
[1739241674382,1.48081105,616.26,615.32,0.26170711]
[1739241674576,1.07172862,616.27,615.32,0.26170711]
[1739241674779,1.48073595,616.26,615.32,0.26170711]
[1739241674980,1.07172862,616.29,615.32,0.26170711]
[1739241675175,1.48074983,616.28,615.32,0.26170711]
[1739241675884,1.07172862,616.27,615.32,0.26170711]
[1739241676083,1.48074983,616.26,615.32,0.26170711]
[1739241676383,1.07172862,616.25,615.32,0.26170711]
[1739241676583,1.48074983,616.24,615.32,0.26170711]
[1739241677183,1.07172862,616.23,615.32,0.26170711]
[1739241677385,1.48074983,616.22,615.32,0.26170711]
[1739241677785,1.07172862,616.21,615.31,0.32503941]
[1739241677985,1.48074983,616.2,615.32,0.26172988]
[1739241678687,1.07172862,616.19,615.32,0.26172988]
[1739241678887,1.48074983,616.18,615.32,0.26172988]
[1739241679187,1.07172862,616.19,615.32,0.26172988]
[1739241679489,1.07172862,616.29,615.32,0.26172988]
[1739241679688,1.48144219,616.28,615.32,0.26172988]
[1739241680583,1.07172862,616.27,615.32,0.26172988]
[1739241680787,1.48144219,616.26,615.32,0.26172988]
[1739241681181,2.5536285,616.25,615.32,0.26172988]
[1739241681382,1.48204639,616.24,615.31,0.32503941]
[1739241681586,1.07172862,616.25,615.32,0.26169867]
[1739241681786,1.07172862,616.23,615.32,0.26169867]
[1739241682589,1.07172862,616.29,615.32,0.26169867]
[1739241682789,1.48250607,616.28,615.32,0.26169867]
[1739241683185,1.48209105,616.27,615.32,0.26169867]
[1739241683489,1.48209105,616.26,615.32,0.26169867]
[1739241683691,1.48209105,616.25,615.32,0.26169867]
[1739241684490,1.07172862,616.24,615.32,0.26169867]
[1739241684888,1.07172862,616.29,615.31,0.32503941]
[1739241685089,1.4825494,616.28,615.32,0.26169689]
[1739241685591,1.07172862,616.27,615.32,0.26169689]
[1739241685890,1.4825494,616.26,615.32,0.26169689]
[1739241686286,1.07172862,616.25,615.32,0.26169689]
[1739241686491,1.4825494,616.24,615.32,0.26169689]
[1739241687091,1.07172862,616.23,615.32,0.26169689]
[1739241687292,0.32451728,616.3,615.32,0.26169689]
[1739241687493,1.48306994,616.29,615.32,0.26169689]
[1739241687893,1.4829831,616.28,615.32,0.26169689]
[1739241688094,1.07203695,616.28,615.32,0.26169689]
[1739241688394,1.07203695,616.28,615.33,0.26167475]
[1739241688593,1.07203695,616.28,615.32,0.26167475]
[1739241688893,1.07203695,616.29,615.33,0.26167475]
[1739241689094,1.07203695,616.29,615.32,0.26167475]
[1739241689292,1.48252825,616.28,615.33,0.26167475]
[1739241689488,1.07203695,616.27,615.34,0.26167475]
[1739241689689,1.07203695,616.27,615.35,0.26167475]
[1739241689890,1.07203695,616.27,615.31,0.32503941]
[1739241689891,1.07203695,616.27,615.36,0.26167475]
[1739241690087,1.07203695,616.29,615.37,0.26167475]
[1739241690292,1.48236514,616.28,615.32,0.26167475]
[1739241690487,1.48236514,616.28,615.33,0.26167475]
[1739241690690,1.48236514,616.28,615.32,0.26167475]
[1739241690691,1.07203695,616.27,615.32,0.26167475]
[1739241690891,1.07203695,616.27,615.33,0.26167475]
[1739241691194,1.07203695,616.27,615.34,0.26167475]
[1739241691394,1.07203695,616.27,615.35,0.32501828]
[1739241691592,1.07203695,616.29,615.36,0.26167475]
[1739241692293,1.07203695,616.92,615.36,0.26167475]
[1739241692491,0.32420165,616.9,615.36,0.26167475]
[1739241692690,1.78052761,616.89,615.36,0.26167475]
[1739241692891,1.78052761,616.88,615.36,0.26167475]
[1739241693093,0.32420165,616.9,615.36,0.26167475]
[1739241693094,1.78052761,616.87,615.36,0.26167475]
[1739241693394,1.78052761,616.86,615.36,0.26167475]
[1739241693589,0.32423318,616.84,615.36,0.26167475]
[1739241693789,1.78054596,616.83,615.37,0.261689]
[1739241693990,2.10478966,616.82,615.38,0.261689]
[1739241694194,1.78054596,616.81,615.36,0.261689]
[1739241694396,1.19745275,616.95,615.35,0.32501828]
[1739241694397,3.17683712,616.8,615.37,0.261689]
[1739241694595,2.10480543,616.79,615.38,0.261689]
[1739241694795,3.17684763,616.78,615.39,0.261689]
[1739241694995,1.78054596,616.77,615.4,0.261689]
[1739241695195,1.78054596,616.76,615.41,0.261689]
[1739241695397,1.78054596,616.75,615.36,0.261689]
[1739241695596,1.78054596,616.74,615.37,0.261689]
[1739241695797,1.78054596,616.73,615.36,0.261689]
[1739241695996,0.29821144,616.72,615.37,0.261689]
[1739241696192,1.48242281,616.71,615.38,0.261689]
[1739241696399,1.78063425,616.7,615.39,0.261689]
[1739241696592,1.78063425,616.69,615.36,0.261689]
[1739241696792,1.78063425,616.68,615.37,0.261689]
[1739241697098,3.17699377,616.67,615.38,0.261689]
[1739241697301,1.78063425,616.66,615.36,0.261689]
[1739241697496,1.78063425,616.65,615.37,0.261689]
[1739241697697,1.78063425,616.64,615.36,0.261689]
[1739241697897,1.78063425,616.63,615.37,0.261689]
[1739241698094,1.78063425,616.62,615.38,0.261689]
[1739241698398,1.78063425,616.61,615.39,0.261689]
[1739241698593,1.78063425,616.6,615.36,0.261689]
[1739241698797,1.78063425,616.59,615.37,0.261689]
[1739241699000,1.48242281,616.58,615.37,0.261689]
[1739241699196,1.48242281,616.57,615.37,0.261689]
[1739241699395,1.48242281,616.56,615.37,0.261689]
[1739241699698,1.48242281,616.55,615.37,0.261689]
[1739241699897,2.55445976,616.54,615.37,0.261689]
[1739241700099,1.48242281,616.53,615.37,0.261689]
[1739241700302,1.48242281,616.52,615.37,0.261689]
[1739241700599,1.07203695,616.54,615.37,0.261689]
[1739241700600,1.48242281,616.51,615.37,0.261689]
[1739241700801,1.48242281,616.5,615.37,0.261689]
[1739241700995,1.48242281,616.49,615.37,0.261689]
[1739241701198,1.48242281,616.48,615.37,0.261689]
[1739241701399,1.48242281,616.47,615.37,0.261689]
[1739241701599,1.48242281,616.46,615.37,0.261689]
[1739241702202,1.07203695,616.45,615.37,0.261689]
[1739241702404,1.48242281,616.44,615.37,0.261689]
[1739241702804,1.07203695,616.43,615.37,0.261689]
[1739241702996,1.48242281,616.42,615.37,0.261689]
[1739241703703,1.07203695,616.41,615.37,0.261689]
[1739241703899,1.48211709,616.4,615.37,0.261689]
[1739241704507,1.48197492,616.39,615.37,0.261689]
[1739241704700,1.48197492,616.38,615.37,0.261689]
[1739241704900,1.48197492,616.38,615.36,0.325013]
[1739241705099,1.48197492,616.38,615.37,0.26166903]
[1739241705305,1.07203695,616.37,615.37,0.26166903]
[1739241705502,1.48197492,616.36,615.37,0.26166903]
[1739241705908,1.07203695,616.35,615.36,0.325013]
[1739241706108,1.48197492,616.34,615.37,0.26166886]
[1739241706509,1.07203695,616.33,615.37,0.26166886]
[1739241706909,1.48195149,616.32,615.37,0.26166886]
[1739241707403,1.07203695,616.66,615.37,0.26166886]
[1739241707608,2.10470787,616.65,615.37,0.26166886]
[1739241707905,2.85241307,616.64,615.38,0.26167881]
[1739241708209,1.78024439,616.63,615.39,0.26167881]
[1739241708410,1.4820431,616.62,615.4,0.26167881]
[1739241708608,1.4820431,616.61,615.41,0.26167881]
[1739241708810,1.7802405,616.6,615.42,0.26167881]
[1739241709002,1.4820431,616.59,615.43,0.26167881]
[1739241709208,1.4820431,616.58,615.44,0.26167881]
[1739241709401,1.4820431,616.57,615.45,0.26167881]
[1739241709608,1.4820431,616.57,615.36,0.325013]
[1739241709609,1.4820431,616.56,615.37,0.26167881]
[1739241709808,2.55408005,616.55,615.38,0.26167881]
[1739241710109,1.4820431,616.54,615.39,0.26167881]
[1739241710305,1.4820431,616.54,615.4,0.58667068]
[1739241710505,1.4820431,616.54,615.41,0.5866654]
[1739241710707,1.4820431,616.54,615.42,0.58666012]
[1739241710908,1.4820431,616.54,615.43,0.58665484]
[1739241711104,1.07203695,616.53,615.44,0.58664956]
[1739241711303,1.4820431,616.52,615.45,0.32496547]
[1739241711507,1.4820431,616.52,615.46,0.26160118]
[1739241711703,1.4820431,616.52,615.47,0.32495491]
[1739241711903,1.07203695,616.51,615.48,0.26160118]
[1739241712109,1.4820431,616.5,615.49,0.32494435]
[1739241712309,1.4820431,616.5,615.5,0.26160118]
[1739241712611,2.55444136,616.49,615.51,0.32493379]
[1739241712809,1.48268564,616.48,615.52,0.26160118]
[1739241713109,1.48268564,616.48,615.53,0.26160909]
[1739241713410,1.07175572,616.47,615.54,0.26160909]
[1739241713605,1.07175572,616.47,615.55,0.26160909]
[1739241713808,1.07175572,616.64,615.55,0.26160909]
[1739241714005,1.48283794,616.63,615.55,0.26160909]
[1739241714410,2.55428636,616.62,615.55,0.26160909]
[1739241714610,1.48253064,616.61,615.55,0.26160909]
[1739241714911,1.07175572,616.6,615.55,0.26160909]
[1739241715110,1.48253064,616.59,615.55,0.26160909]
[1739241716110,1.07175572,616.58,615.55,0.26160909]
[1739241716310,1.48253064,616.57,615.55,0.26160909]
[1739241716810,1.48253064,616.57,615.56,0.26158099]
[1739241717010,1.48207347,616.56,615.55,0.26158099]
[1739241717210,1.07175572,616.58,615.54,0.32491795]
[1739241717211,1.48207347,616.55,615.56,0.26158099]
[1739241717407,1.48207347,616.54,615.55,0.26158099]
[1739241717612,1.07175572,616.56,615.54,0.32491795]
[1739241717613,1.48207347,616.53,615.56,0.26158099]
[1739241717912,1.07175572,616.56,615.57,0.26158099]
[1739241718106,1.07175572,616.52,615.58,0.26158099]
[1739241718310,1.07175572,616.52,615.55,0.26158099]
[1739241718509,1.07175572,616.64,615.56,0.26156987]
[1739241718711,1.48178368,616.63,615.55,0.26156987]
[1739241718911,1.48178368,616.63,615.54,0.32491795]
[1739241718912,1.48178368,616.63,615.56,0.26156987]
[1739241719212,1.07175572,616.62,615.57,0.26156987]
[1739241719414,1.48178368,616.61,615.58,0.26156987]
[1739241719609,1.48178368,616.61,615.59,0.26156987]
[1739241719807,1.07175572,616.6,615.6,0.26156987]
[1739241720008,1.48178368,616.59,615.55,0.26156987]
[1739241720209,1.48178368,616.59,615.56,0.26156987]
[1739241720410,1.07175572,616.58,615.56,0.26156987]
[1739241720614,1.48178368,616.57,615.57,0.26156987]
[1739241720814,1.48178368,616.57,615.55,0.26156987]
[1739241721014,1.48178368,616.57,615.56,0.26156987]
[1739241721209,1.07175572,616.56,615.55,0.26156987]
[1739241721412,1.48178368,616.55,615.55,0.26156987]
[1739241721613,1.48161279,616.54,615.55,0.26156987]
[1739241721813,1.48161279,616.53,615.55,0.26156987]
[1739241722517,1.07175572,616.52,615.55,0.26156987]
[1739241722816,1.48161279,616.51,615.55,0.26156987]
[1739241723511,1.07175572,616.5,615.55,0.26156987]
[1739241723711,1.48161279,616.49,615.55,0.26156987]
[1739241724014,1.07175572,616.48,615.55,0.26156987]
[1739241724718,1.07175572,616.64,615.55,0.26156987]
[1739241725020,1.48131467,616.63,615.55,0.26156987]
[1739241725313,1.07175572,616.62,615.55,0.26156987]
[1739241725518,1.48131467,616.61,615.55,0.26156987]
[1739241725711,2.55307039,616.6,615.55,0.26156987]
[1739241725915,1.48131467,616.59,615.54,0.32491795]
[1739241726112,2.55307039,616.58,615.54,0.32491795]
[1739241726413,1.48131467,616.57,615.54,0.32491795]
[1739241726614,1.48131467,616.56,615.54,0.32491795]
[1739241726822,1.48131467,616.55,615.54,0.32491795]
[1739241727220,1.48131467,616.54,615.54,0.32491795]
[1739241727418,2.55307039,616.53,615.54,0.32491795]
[1739241727622,1.48131467,616.52,615.54,0.32491795]
[1739241728523,2.55307039,616.51,615.54,0.32491795]
[1739241728715,1.48131467,616.5,615.54,0.32491795]
[1739241729021,1.07175572,616.51,615.54,0.32491795]
[1739241729224,1.07175572,616.49,615.54,0.32491795]
[1739241729423,1.48160526,616.48,615.54,0.32491795]
[1739241729721,1.07175572,616.47,615.54,0.32491795]
[1739241729916,1.48160526,616.46,615.54,0.32491795]
[1739241730717,1.07175572,616.45,615.54,0.32491795]
[1739241730921,1.48160526,616.44,615.54,0.32491795]
[1739241731121,1.07175572,616.43,615.54,0.32491795]
[1739241731318,1.48160526,616.42,615.54,0.32491795]
[1739241732119,1.07175572,616.41,615.54,0.32491795]
[1739241732425,1.48160526,616.4,615.54,0.32491795]
[1739241733523,1.07175572,616.39,615.54,0.32491795]
[1739241733719,1.48160526,616.38,615.54,0.32491795]
[1739241734227,1.07175572,616.37,615.54,0.32491795]
[1739241734420,1.48160526,616.36,615.54,0.32491795]
[1739241734822,1.07175572,616.35,615.54,0.32491795]
[1739241735021,1.48160526,616.34,615.54,0.32491795]
[1739241735628,2.55444915,616.33,615.54,0.32491795]
[1739241735927,1.48269343,616.32,615.54,0.32491795]
[1739241736128,1.48288371,616.31,615.54,0.32491795]
[1739241736428,1.07175572,616.31,615.54,0.32491795]
[1739241736622,1.48323601,616.3,615.54,0.32491795]
[1739241736825,1.07175572,616.29,615.54,0.32491795]
[1739241737026,1.07175572,616.64,615.54,0.32491795]
[1739241737227,1.48329888,616.63,615.54,0.32491795]
[1739241737427,1.48329888,616.62,615.54,0.32491795]
[1739241737627,1.48329888,616.61,615.54,0.32491795]
[1739241737828,1.48344269,616.6,615.54,0.32491795]
[1739241738023,0.32433309,616.65,615.54,0.32491795]
[1739241738024,2.55519841,616.59,615.54,0.32491795]
[1739241738227,1.48344269,616.58,615.54,0.32491795]
[1739241738425,1.48344269,616.57,615.54,0.32491795]
[1739241738624,1.48344269,616.56,615.54,0.32491795]
[1739241738928,1.48344269,616.55,615.54,0.32491795]
[1739241739129,1.48344269,616.54,615.54,0.32491795]
[1739241739325,1.48344269,616.53,615.54,0.32491795]
[1739241739525,1.48344269,616.52,615.54,0.32491795]
[1739241739725,1.48344269,616.51,615.54,0.32491795]
[1739241739931,1.07175572,616.55,615.54,0.32491795]
[1739241740228,2.55563658,616.54,615.54,0.32491795]
[1739241740429,1.48388086,616.53,615.54,0.32491795]
[1739241740629,0.32433309,616.65,615.54,0.32491795]
[1739241740630,2.55563658,616.52,615.54,0.32491795]
[1739241740929,1.48388086,616.51,615.54,0.32491795]
[1739241741129,1.48388086,616.5,615.54,0.32491795]
[1739241741533,1.48388086,616.5,615.55,0.26161465]
[1739241741726,1.07175572,616.49,615.54,0.32491795]
[1739241741928,1.48388086,616.48,615.54,0.32491795]
[1739241742127,1.48397157,616.47,615.54,0.32491795]
[1739241742433,1.48397157,616.47,615.55,0.26161891]
[1739241742927,1.07175572,616.46,615.55,0.26161891]
[1739241743126,1.48397157,616.45,615.55,0.26161891]
[1739241743531,1.07175572,616.44,615.55,0.26161891]
[1739241743725,1.48397157,616.43,615.55,0.26161891]